fUST/lending_fUST_20240705
["ID","MTS","AMOUNT","RATE_DAILY","PERIOD"]
[331281714,1720176640241,-500.0,0.00016252,2]
[331281715,1720176640251,-333.97827987,0.00016252,2]
[331281716,1720176640261,-343.92114202,0.00016252,2]
[331281717,1720176640271,-500.0,0.00016252,2]
[331281718,1720176640282,-500.0,0.00016252,2]
[331281719,1720176640292,-500.0,0.00016252,2]
[331281720,1720176640303,-500.0,0.00016252,2]
[331281721,1720176640312,-500.0,0.00016252,2]
[331281722,1720176640323,-500.0,0.00016252,2]
[331281723,1720176640333,-500.0,0.00016252,2]
[331281724,1720176640343,-500.0,0.00016252,2]
[331281725,1720176640353,-500.0,0.00016252,2]
[331281726,1720176640362,-500.0,0.00016252,2]
[331281727,1720176640372,-500.0,0.00016252,2]
[331281728,1720176640381,-500.0,0.00016252,2]
[331281729,1720176640394,-500.0,0.00016252,2]
[331281730,1720176640404,-500.0,0.00016252,2]
[331281731,1720176640414,-500.0,0.00016252,2]
[331281732,1720176640423,-500.0,0.00016252,2]
[331281733,1720176640453,-57214.94712358,0.00016254,2]
[331281734,1720176640465,-34932.27430829,0.00016255,2]
[331281735,1720176640475,-30000.0,0.00016255,2]
[331281736,1720176640485,-420.0,0.00016743,2]
[331281737,1720176640494,-587.0,0.00018417,2]
[331281738,1720176640503,-378.37321801,0.00019039,2]
[331281739,1720176640512,-250.0,0.00019041,2]
[331281740,1720176640522,-440.6010737,0.00019178,4]
[331281741,1720176640531,-159.456528,0.00019178,2]
[331281742,1720176640541,-1724.35538883,0.0002,2]
[331281743,1720176640551,-823.0,0.00020258,2]
[331281744,1720176640560,-793.558386,0.00020586,2]
[331281745,1720176640569,-613.569289,0.00021096,2]
[331281746,1720176640578,-501.91198949,0.000212,2]
[331281747,1720176640588,-1116.9418809,0.00021917,2]
[331281748,1720176640599,-435.0,0.00021917,2]
[331281749,1720176640608,-1152.0,0.00022284,2]
[331281750,1720176640620,-879.23230837,0.00022288,2]
[331281751,1720176640631,-16359.2920159,0.00022357,3]
[331281752,1720176640640,-337.78812104,0.00022842,2]
[331281753,1720176640656,-3968.06642419,0.00022941,2]
[331281754,1720176640666,-17247.80566422,0.00022942,2]
[331281755,1720176640676,-17247.80566422,0.00022942,2]
[331281756,1720176640686,-6364.3639553,0.00023,2]
[331281757,1720176640696,-200.0,0.00023,2]
[331281758,1720176640708,-1065.30074994,0.00023054,2]
[331281759,1720176640720,-643.43672007,0.00023127,2]
[331281760,1720176640730,-5502.46991608,0.00023355,2]
[331281761,1720176640740,-2132.69930736,0.00023453,2]
[331281762,1720176640750,-159.463405,0.00023635,2]
[331281763,1720176640760,-276.42306753,0.00023966,2]
[331281764,1720176640770,-3138.06906429,0.00023966,2]
[331281765,1720176640780,-642.2650375,0.00024207,2]
[331281766,1720176640790,-621.171836,0.00024283,2]
[331281767,1720176640800,-153.17115845,0.00024324,2]
[331281768,1720176640809,-2883.56658262,0.0002448,2]
[331281769,1720176640819,-3130.40828598,0.0002448,4]
[331281770,1720176640828,-1634.75488436,0.0002448,2]
[331281771,1720176640837,-4711.13030053,0.0002448,2]
[331281772,1720176640847,-1104.74204561,0.00024481,2]
[331281773,1720176640857,-1613.0,0.00024513,2]
[331281774,1720176640867,-200.0,0.00024658,15]
[331281775,1720176640877,-380.0,0.00024658,2]
[331281776,1720176640886,-16359.2920159,0.0002499,3]
[331281777,1720176640896,-500.0,0.00025,30]
[331281778,1720176640905,-500.0,0.00025,30]
[331281779,1720176640916,-537.0,0.00025,30]
[331281780,1720176640925,-12256.62261502,0.00025,60]
[331281781,1720176640935,-154.86836189,0.00025,2]
[331281782,1720176640944,-169.50434797,0.00025,2]
[331281783,1720176640954,-191.03923068,0.00025,2]
[331281784,1720176640965,-2244.84007704,0.00025,7]
[331281785,1720176640974,-225.53942994,0.00025,2]
[331281786,1720176640984,-304.31082142,0.00025,2]
[331281787,1720176640994,-189.04078712,0.00025,2]
[331281788,1720176641004,-284.26271461,0.00025,2]
[331281789,1720176641014,-8009.49062548,0.00025,2]
[331281790,1720176641025,-1464.89089073,0.00025,2]
[331281791,1720176641034,-166.666666,0.00025033,2]
[331281792,1720176641044,-156.25095608,0.00025088,2]
[331281793,1720176641053,-150.0,0.00025296,2]
[331281795,1720176641063,-621.11325187,0.00025417,2]
[331281796,1720176641073,-16359.2920159,0.00025491,3]
[331281797,1720176641082,-52100.07365113,0.00025501,2]
[331281799,1720176641091,-3078.85157566,0.00025501,2]
[331281800,1720176641101,-13378.11390107,0.00025501,2]
[331281801,1720176641110,-166.666666,0.00025715,2]
[331281802,1720176641119,-250.0,0.00025844,2]
[331281803,1720176641130,-151.0,0.00025869,7]
[331281804,1720176641139,-789.859108,0.00025869,2]
[331281805,1720176641149,-789.859108,0.00025869,2]
[331281806,1720176641158,-2420.76089721,0.00025869,2]
[331281807,1720176641167,-156.25095608,0.00025891,2]
[331281808,1720176641177,-4462.98107428,0.00026,2]
[331281809,1720176641186,-158.66408624,0.00026133,2]
[331281810,1720176641196,-300.0,0.00026392,2]
[331281811,1720176641208,-166.666666,0.00026398,2]
[331281812,1720176641219,-3000.0,0.000265,2]
[331281813,1720176641228,-16359.2920159,0.000265,3]
[331281814,1720176641237,-3000.0,0.0002651,2]
[331281815,1720176641247,-3000.0,0.0002652,2]
[331281816,1720176641258,-5163.924926,0.0002653,2]
[331281817,1720176641272,-1500.0,0.00026574,2]
[331281818,1720176641282,-150.73437923,0.00026742,2]
[331281819,1720176641291,-2118.54298063,0.00026848,2]
[331281820,1720176641301,-1322.0,0.00026964,2]
[331281821,1720176641311,-166.666666,0.0002708,2]
[331281822,1720176641321,-16359.2920159,0.00027185,3]
[331281823,1720176641330,-1434.5963251,0.00027194,2]
[331281824,1720176641340,-1434.5963251,0.00027194,2]
[331281825,1720176641349,-598.68283136,0.00027194,2]
[331281826,1720176641359,-950.14763276,0.00027194,2]
[331281827,1720176641480,-613.569289,0.00027195,2]
[331281828,1720176641494,-915.06377454,0.00027397,2]
[331281829,1720176641504,-500.0,0.00027397,30]
[331281830,1720176641514,-500.0,0.00027397,2]
[331281831,1720176641523,-500.0,0.00027397,2]
[331281832,1720176641533,-500.0,0.00027397,2]
[331281833,1720176641543,-500.0,0.00027397,2]
[331281834,1720176641552,-500.0,0.00027397,2]
[331281835,1720176641562,-500.0,0.00027397,2]
[331281836,1720176641572,-500.0,0.00027397,2]
[331281837,1720176641582,-500.0,0.00027397,2]
[331281838,1720176641592,-500.0,0.00027397,2]
[331281839,1720176641602,-500.0,0.00027397,2]
[331281840,1720176641612,-500.0,0.00027397,2]
[331281841,1720176641625,-500.0,0.00027397,2]
[331281842,1720176641635,-500.0,0.00027397,2]
[331281843,1720176641646,-500.0,0.00027397,2]
[331281844,1720176641656,-500.0,0.00027397,2]
[331281845,1720176641667,-500.0,0.00027397,2]
[331281846,1720176641679,-500.0,0.00027397,2]
[331281847,1720176641689,-500.0,0.00027397,2]
[331281848,1720176641701,-298.91230394,0.00027397,2]
[331281849,1720176641711,-500.0,0.00027397,2]
[331281850,1720176641724,-154.86836189,0.00027399,2]
[331281851,1720176641733,-533.3558327,0.00027399,2]
[331281852,1720176641743,-175.1548047,0.000274,2]
[331281853,1720176641753,-5502.46991604,0.00027491,2]
[331281854,1720176641763,-153.17115845,0.000276,2]
[331281855,1720176641772,-151.57276841,0.00027711,2]
[331281856,1720176641782,-158.66408624,0.00027751,2]
[331281857,1720176641793,-166.666666,0.00027763,2]
[331281858,1720176641803,-2000.0,0.00027982,2]
[331281859,1720176641812,-16359.2920159,0.0002799,3]
[331281860,1720176641823,-2000.0,0.00027991,2]
[331281862,1720176641832,-150.73437923,0.00027993,2]
[331281864,1720176641841,-812.31944159,0.00027999,11]
[331281865,1720176641851,-9615.23092531,0.00027999,2]
[331281867,1720176641860,-812.31944159,0.00027999,11]
[331281869,1720176641870,-154.86836189,0.00027999,2]
[331281871,1720176641879,-562.70462745,0.00027999,2]
[331281873,1720176641890,-948.9256647,0.00027999,2]
[331281875,1720176641900,-2126.01092602,0.00027999,2]
[331281876,1720176641909,-9615.23092531,0.00027999,2]
[331281878,1720176641919,-2000.0,0.00028,2]
[331281880,1720176641929,-11925.41661857,0.00028,30]
[331281882,1720176641938,-268.30367969,0.00028,2]
[331281884,1720176641948,-166.666666,0.00028445,2]
[331281885,1720176641958,-152.80906433,0.00029299,2]
[331281887,1720176641969,-156.25095608,0.00029437,2]
[331281888,1720176641978,-150.73437923,0.00029764,2]
[331281889,1720176641988,-190.9326654,0.00029793,2]
[331281890,1720176642000,-293.33394095,0.00029793,2]
[331281891,1720176642010,-808.08946619,0.00029803,2]
[331281892,1720176642020,-4859.89155557,0.00029803,2]
[331281893,1720176642029,-415.27387509,0.00029813,2]
[331281894,1720176642039,-100000.0,0.00029813,2]
[331281895,1720176642049,-11030.4600577,0.00029813,2]
[331281896,1720176642059,-151.0,0.00029823,7]
[331281897,1720176642069,-151.0,0.00029823,7]
[331281898,1720176642079,-151.0,0.00029823,7]
[331281899,1720176642089,-151.0,0.00029823,7]
[331281900,1720176642099,-274.47009,0.00029823,7]
[331281901,1720176642108,-16359.2920159,0.00029869,3]
[331281902,1720176642117,-151.0,0.00029869,7]
[331281903,1720176642126,-151.0,0.00029869,7]
[331281905,1720176642136,-151.0,0.00029869,7]
[331281906,1720176642146,-151.0,0.00029869,7]
[331281908,1720176642155,-151.0,0.00029869,7]
[331281909,1720176642164,-151.0,0.00029869,7]
[331281910,1720176642173,-151.0,0.00029869,7]
[331281911,1720176642182,-151.22207,0.00029879,7]
[331281912,1720176642192,-151.0,0.00029879,7]
[331281913,1720176642202,-217.625404,0.00029879,7]
[331281914,1720176642212,-224.230914,0.00029879,7]
[331281915,1720176642224,-224.230914,0.00029879,7]
[331281916,1720176642233,-151.0,0.00029879,7]
[331281917,1720176642242,-151.0,0.00029879,7]
[331281918,1720176642252,-228.341063,0.00029879,7]
[331281919,1720176642261,-212.012607,0.00029879,7]
[331281920,1720176642270,-212.012607,0.00029879,7]
[331281921,1720176642280,-151.0,0.00029879,7]
[331281922,1720176642289,-243.531408,0.00029879,7]
[331281923,1720176642298,-151.0,0.00029879,7]
[331281924,1720176642308,-243.531408,0.00029879,7]
[331281925,1720176642317,-151.0,0.00029879,7]
[331281926,1720176642327,-151.0,0.00029879,7]
[331281927,1720176642336,-151.0,0.00029879,7]
[331281928,1720176642346,-393.953113,0.00029879,7]
[331281929,1720176642355,-151.0,0.00029879,7]
[331281930,1720176642365,-166.10106,0.00029879,7]
[331281931,1720176642375,-393.953113,0.00029879,7]
[331281932,1720176642384,-166.10106,0.00029879,7]
[331281933,1720176642395,-10576.24668885,0.00029904,2]
[331281934,1720176642405,-6981.98564229,0.00029979,2]
[331281935,1720176642417,-1489.24109091,0.00029999,2]
[331281936,1720176642426,-642.76758109,0.0003,4]
[331281937,1720176642436,-351.32038796,0.0003,30]
[331281938,1720176642446,-949.999999,0.0003,30]
[331281939,1720176642456,-225.420696,0.0003,7]
[331281940,1720176642466,-151.0,0.0003,7]
[331281941,1720176642476,-1816.54692595,0.00030092,22]
[331281942,1720176642485,-504.49555993,0.00030183,2]
[331281943,1720176642495,-1816.54692595,0.00030187,22]
[331281944,1720176642504,-154.86836189,0.00030229,4]
[331281945,1720176642513,-154.86836189,0.00030229,4]
[331281946,1720176642523,-151.57276841,0.00030282,7]
[331281947,1720176642532,-501.98856594,0.0003029,2]
[331281948,1720176642541,-49077.8760476,0.00030292,4]
[331281949,1720176642552,-212.012607,0.00030302,7]
[331281950,1720176642561,-212.012607,0.00030302,7]
[331281951,1720176642570,-243.531408,0.00030302,7]
[331281952,1720176642579,-151.0,0.00030302,7]
[331281953,1720176642588,-243.531408,0.00030302,7]
[331281954,1720176642597,-393.953113,0.00030302,7]
[331281955,1720176642606,-166.10106,0.00030302,7]
[331281956,1720176642616,-393.953113,0.00030302,7]
[331281957,1720176642629,-166.10106,0.00030302,7]
[331281958,1720176642639,-162.89436,0.00030323,7]
[331281959,1720176642648,-151.0,0.00030323,7]
[331281960,1720176642658,-151.0,0.00030323,7]
[331281961,1720176642670,-151.0,0.00030323,7]
[331281962,1720176642680,-202.408757,0.00030323,7]
[331281963,1720176642690,-202.408757,0.00030323,7]
[331281964,1720176642702,-214.4209,0.00030323,7]
[331281965,1720176642714,-151.0,0.00030323,7]
[331281966,1720176642725,-214.4209,0.00030323,7]
[331281967,1720176642735,-419.586956,0.00030323,7]
[331281968,1720176642745,-419.586956,0.00030323,7]
[331281969,1720176642755,-24379.56777085,0.00030335,2]
[331281970,1720176642764,-300.0,0.00030335,2]
[331281971,1720176642774,-509.7935155,0.00030335,2]
[331281972,1720176642786,-288.54873536,0.00030335,2]
[331281973,1720176642796,-317.6820451,0.00030335,2]
[331281974,1720176642806,-283.45664934,0.00030335,2]
[331281975,1720176642816,-7500.003447,0.00030335,4]
[331281976,1720176642826,-153.05087922,0.00030335,2]
[331281977,1720176642835,-511.29611507,0.00030335,2]
[331281978,1720176642845,-587.92208219,0.00030335,2]
[331281979,1720176642855,-221.53556508,0.00030335,2]
[331281980,1720176642866,-433.70222597,0.00030335,2]
[331281981,1720176642875,-190.98313,0.00030335,30]
[331281982,1720176642886,-1816.54692595,0.00030393,22]
[331281983,1720176642895,-247.052392,0.0003043,7]
[331281984,1720176642905,-159.377114,0.0003043,7]
[331281985,1720176642914,-159.377114,0.0003043,7]
[331281986,1720176642924,-151.0,0.0003043,7]
[331281987,1720176642933,-151.0,0.0003043,7]
[331281988,1720176642943,-284.22582068,0.0003043,3]
[331281989,1720176642953,-1816.54692595,0.00030489,22]
[331281990,1720176642962,-1816.54692595,0.00030694,22]
[331281991,1720176642973,-1816.54692595,0.00030791,22]
[331281992,1720176642983,-793.558386,0.00030878,2]
[331281993,1720176642992,-151.57276841,0.00030885,7]
[331281994,1720176643002,-1816.54692595,0.00030995,22]
[331281995,1720176643012,-2171.17740208,0.00031093,15]
[331281996,1720176643022,-908.71211091,0.00031093,24]
[331281997,1720176643031,-158.66408624,0.00031164,7]
[331281998,1720176643040,-151.57276841,0.0003118,7]
[331281999,1720176643050,-150.73437923,0.00031227,7]
[331282000,1720176643059,-1345.04926086,0.00031597,24]
[331282001,1720176643069,-151.0,0.00031627,7]
[331282002,1720176643079,-151.0,0.00031627,7]
[331282003,1720176643088,-151.0,0.00031627,7]
[331282004,1720176643098,-151.0,0.00031627,7]
[331282005,1720176643107,-5502.46991604,0.00031628,2]
[331282006,1720176643118,-151.0,0.0003176,7]
[331282007,1720176643127,-150.73437923,0.00031924,7]
[331282008,1720176643136,-152.561443,0.00032542,7]
[331282009,1720176643146,-152.80906433,0.00033226,7]
[331282010,1720176643156,-151.0,0.00033282,7]
[331282011,1720176643165,-151.0,0.00033282,7]
[331282012,1720176643175,-151.0,0.00033282,7]
[331282013,1720176643184,-151.0,0.00033282,7]
[331282014,1720176643193,-151.0,0.00033282,7]
[331282015,1720176643202,-151.0,0.00033282,7]
[331282016,1720176643211,-151.0,0.00033282,7]
[331282017,1720176643222,-151.0,0.00033282,7]
[331282018,1720176643232,-151.0,0.00033282,7]
[331282019,1720176643241,-151.0,0.00033282,7]
[331282020,1720176643250,-613.569289,0.00033295,2]
[331282021,1720176643260,-224.230914,0.00033797,7]
[331282022,1720176643269,-224.230914,0.00033797,7]
[331282023,1720176643279,-151.0,0.00033797,7]
[331282024,1720176643288,-151.0,0.00033797,7]
[331282025,1720176643298,-16359.2920159,0.00033797,4]
[331282026,1720176643308,-212.012607,0.00033807,7]
[331282027,1720176643317,-212.012607,0.00033807,7]
[331282028,1720176643326,-243.531408,0.00033807,7]
[331282029,1720176643335,-151.0,0.00033807,7]
[331282030,1720176643347,-243.531408,0.00033807,7]
[331282031,1720176643357,-393.953113,0.00033807,7]
[331282032,1720176643367,-166.10106,0.00033807,7]
[331282033,1720176643376,-393.953113,0.00033807,7]
[331282034,1720176643482,-166.10106,0.00033807,7]
[331282035,1720176643492,-25000.7011477,0.00033807,60]
[331282036,1720176643502,-152.80906433,0.00034128,7]
[331282037,1720176643511,-714.79757036,0.00034462,4]
[331282038,1720176643521,-151.57276841,0.00034481,7]
[331282039,1720176643531,-159.2983416,0.00034654,7]
[331282040,1720176643541,-202.408757,0.0003467,7]
[331282041,1720176643550,-202.408757,0.0003467,7]
[331282042,1720176643560,-214.4209,0.0003467,7]
[331282043,1720176643570,-151.0,0.0003467,7]
[331282044,1720176643580,-214.4209,0.0003467,7]
[331282045,1720176643590,-419.586956,0.0003467,7]
[331282046,1720176643600,-419.586956,0.0003467,7]
[331282047,1720176643609,-2146.27761673,0.00034672,14]
[331282048,1720176643622,-154.86836189,0.00034672,4]
[331282049,1720176643632,-243.0,0.000348,3]
[331282050,1720176643641,-151.0,0.00034989,7]
[331282051,1720176643651,-151.0,0.00034989,7]
[331282052,1720176643661,-151.0,0.00034989,7]
[331282053,1720176643671,-151.0,0.00034989,7]
[331282054,1720176643681,-151.0,0.00034989,7]
[331282055,1720176643690,-151.0,0.00034989,7]
[331282058,1720176643702,-151.0,0.00034989,7]
[331282062,1720176643711,-211.50108117,0.00035259,4]
[331282066,1720176643722,-236.90699028,0.00035259,4]
[331282071,1720176643732,-157.39797893,0.00035259,4]
[331282075,1720176643743,-215.10199221,0.00035259,4]
[331282079,1720176643753,-173.66290897,0.00035259,4]
[331282083,1720176643764,-152.80906433,0.00035439,7]
[331282087,1720176643773,-11387.62,0.00035616,3]
[331282091,1720176643782,-9489.69,0.00035616,3]
[331282094,1720176643792,-7908.07,0.00035616,3]
[331282098,1720176643801,-150.73437923,0.00035709,7]
[331282101,1720176643811,-5502.46991604,0.00035764,2]
[331282104,1720176643820,-395.39220748,0.00036,30]
[331282107,1720176643831,-150.73437923,0.00036428,7]
[331282110,1720176643840,-152.80906433,0.00036764,7]
[331282113,1720176643851,-150.73437923,0.00037558,7]
[331282117,1720176643860,-150.73437923,0.00037773,7]
[331282119,1720176643870,-160.13983905,0.00037925,7]
[331282123,1720176643879,-7275.1816918,0.0003799,4]
[331282162,1720176644278,-585.94,0.00029803,2]
[331282163,1720176644290,-41640.36858632,0.00029803,2]
[331282164,1720176644299,-9084.1103241,0.0003799,4]
[331282165,1720176644309,-23892.12652259,0.00038,30]
[331282166,1720176644319,-151.0,0.00038,7]
[331282167,1720176644328,-151.0,0.00038,7]
[331282168,1720176644337,-151.0,0.00038,7]
[331282169,1720176644347,-151.0,0.00038,7]
[331282170,1720176644357,-151.0,0.00038,7]
[331282171,1720176644366,-167.593566,0.00038,7]
[331282172,1720176644376,-300.0,0.00038,7]
[331282173,1720176644385,-151.0,0.00038,7]
[331282174,1720176644398,-159.456528,0.00038748,2]
[331282175,1720176644408,-150.73437923,0.00038837,7]
[331282176,1720176644418,-154.86836189,0.000392,10]
[331282177,1720176644427,-613.569289,0.00039394,2]
[331282178,1720176644437,-150.73437923,0.00039485,7]
[331282179,1720176644447,-156.25095608,0.0003973,7]
[331282180,1720176644456,-5502.46991604,0.000399,2]
[331282181,1720176644468,-3990.00210664,0.0003999,4]
[331282182,1720176644478,-151.0,0.0004,120]
[331282183,1720176644488,-151.0,0.0004,120]
[331282184,1720176644498,-22995.03952073,0.0004,120]
[331282185,1720176644508,-1799.40583363,0.0004,5]
[331282186,1720176644518,-25380.23808094,0.0004,120]
[331282187,1720176644527,-7016.58670565,0.0004,30]
[331282188,1720176644541,-11057.7640949,0.0004,30]
[331282282,1720177838195,-1918.6526209,0.00014313,2]
[331282399,1720177841425,-1081.3473791,0.00014313,2]
[331282402,1720177841435,-300.0,0.00014413,2]
[331282404,1720177841445,-24900.0,0.00014414,2]
[331282405,1720177841454,-6981.98564229,0.00014998,2]
[331282406,1720177841466,-3138.06906429,0.00014999,2]
[331282407,1720177841476,-3130.40828598,0.00014999,4]
[331282408,1720177841489,-2118.54298063,0.00014999,2]
[331282409,1720177841500,-789.859108,0.00014999,2]
[331282410,1720177841510,-1434.5963251,0.00014999,2]
[331282411,1720177841531,-190.20399565,0.00014999,2]
[331282412,1720177841542,-2420.76089721,0.00015,2]
[331282413,1720177841552,-8569.21623198,0.00016244,2]
[331282414,1720177841562,-500.0,0.00016244,2]
[331282415,1720177841572,-500.0,0.00016244,2]
[331282416,1720177841582,-500.0,0.00016244,2]
[331282417,1720177841593,-500.0,0.00016244,2]
[331282418,1720177841603,-500.0,0.00016244,2]
[331282419,1720177841619,-500.0,0.00016244,2]
[331282420,1720177841629,-400.19348397,0.00016244,2]
[331282421,1720177841639,-500.0,0.00016244,2]
[331282422,1720177841649,-500.0,0.00016244,2]
[331282423,1720177841659,-500.0,0.00016244,2]
[331282424,1720177841670,-500.0,0.00016244,2]
[331282425,1720177841679,-500.0,0.00016244,2]
[331282426,1720177841689,-500.0,0.00016244,2]
[331282427,1720177841699,-500.0,0.00016244,2]
[331282428,1720177841710,-500.0,0.00016244,2]
[331282429,1720177841721,-8569.21623198,0.00016245,2]
[331282430,1720177841731,-67048.51114834,0.00016254,2]
[331282431,1720177841741,-57214.94712358,0.00016254,2]
[331282432,1720177841751,-42226.30858632,0.00016255,2]
[331282433,1720177841762,-276.42306753,0.00016824,2]
[331282434,1720177841771,-166.666666,0.00017389,2]
[331282435,1720177841960,-166.666666,0.00017863,2]
[331282436,1720177841971,-396.779193,0.0001792,2]
[331282437,1720177841981,-166.666666,0.00018337,2]
[331282438,1720177842000,-166.666666,0.00018811,2]
[331282439,1720177842010,-250.0,0.00019041,2]
[331282440,1720177842022,-159.458521,0.00019178,2]
[331282441,1720177842033,-159.463405,0.00019178,2]
[331282442,1720177842043,-166.666666,0.00019285,2]
[331282443,1720177842052,-166.666666,0.0001976,2]
[331282444,1720177842062,-550.602658,0.00021096,2]
[331282445,1720177842074,-154.88383712,0.00021917,2]
[331282446,1720177842084,-461.7864594,0.00023036,2]
[331282447,1720177842093,-2874.29556944,0.00023453,2]
[331282448,1720177842104,-151.57276841,0.00024291,2]
[331282449,1720177842114,-200.0,0.00024658,15]
[331282450,1720177842124,-34276.8649279,0.00025491,3]
[331282451,1720177842134,-52100.07365113,0.00025501,2]
[331282452,1720177842144,-150.73437924,0.00025525,2]
[331282453,1720177842153,-150.0,0.000265,2]
[331282455,1720177842163,-150.30016482,0.00026868,2]
[331282456,1720177842172,-396.779193,0.0002688,2]
[331282458,1720177842182,-17247.80566422,0.00027184,2]
[331282460,1720177842191,-550.602658,0.00027195,2]
[331282462,1720177842201,-158.66408624,0.00027216,2]
[331282464,1720177842211,-150.30016482,0.00027341,2]
[331282465,1720177842223,-500.0,0.00027397,2]
[331282467,1720177842233,-500.0,0.00027397,2]
[331282469,1720177842242,-500.0,0.00027397,2]
[331282471,1720177842251,-500.0,0.00027397,2]
[331282473,1720177842260,-500.0,0.00027397,2]
[331282475,1720177842270,-188.1945247,0.00027397,2]
[331282478,1720177842280,-500.0,0.00027397,2]
[331282481,1720177842290,-500.0,0.00027397,2]
[331282485,1720177842300,-500.0,0.00027397,2]
[331282489,1720177842310,-500.0,0.00027397,2]
[331282493,1720177842320,-500.0,0.00027397,2]
[331282497,1720177842330,-500.0,0.00027397,2]
[331282501,1720177842342,-224.8099451,0.00027397,120]
[331282503,1720177842352,-151.57276841,0.00027501,2]
[331282505,1720177842362,-30000.0,0.00027999,2]
[331282507,1720177842372,-30000.0,0.00027999,2]
[331282509,1720177842382,-12193.72029826,0.00028,30]
[331282512,1720177842395,-2000.0,0.00028389,2]
[331282513,1720177842404,-2000.0,0.00028398,2]
[331282515,1720177842414,-2000.0,0.00028407,2]
[331282517,1720177842424,-1087.36634063,0.00028407,2]
[331282520,1720177842433,-153.17115845,0.00028524,2]
[331282522,1720177842443,-1000.0,0.00029,29]
[331282524,1720177842453,-160.13983905,0.00029469,2]
[331282526,1720177842462,-2874.29556943,0.00029565,2]
[331282528,1720177842474,-8569.21623198,0.00029783,3]
[331282530,1720177842484,-160.13983905,0.00029805,2]
[331282532,1720177842494,-151.0,0.00029879,7]
[331282534,1720177842504,-9615.23092531,0.00029879,2]
[331282536,1720177842513,-8569.21623198,0.00029989,4]
[331282537,1720177842523,-1816.90998119,0.00030105,22]
[331282539,1720177842533,-504.49555993,0.00030196,2]
[331282541,1720177842542,-151.0,0.00030302,7]
[331282543,1720177842552,-499.9,0.00030347,30]
[331282545,1720177842561,-1816.18387074,0.00030406,22]
[331282547,1720177842571,-2500.0,0.00031,2]
[331282549,1720177842580,-152.80906433,0.00031621,7]
[331282551,1720177842589,-151.57276841,0.00032486,7]
[331282553,1720177842599,-152.80906433,0.00032697,7]
[331282555,1720177842608,-152.80906433,0.00033217,7]
[331282557,1720177842618,-550.602658,0.00033295,2]
[331282559,1720177842627,-152.80906433,0.00033318,7]
[331282561,1720177842636,-14314.49252699,0.00033732,4]
[331282564,1720177842651,-264.42463673,0.00033732,4]
[331282606,1720177843245,-292.85,0.00025086,2]
[331282608,1720177843265,-7.15,0.00025086,2]
[331282610,1720177843296,-2907.84640697,0.00029823,2]
[331282612,1720177843315,-6707.38451834,0.00029823,2]
[331282615,1720177843325,-2559.51530028,0.00033732,4]
[331282617,1720177843335,-88888.0,0.00033742,5]
[331282619,1720177843345,-151.0,0.00033807,7]
[331282621,1720177843355,-1000.0,0.0003383,2]
[331282623,1720177843364,-8569.21623198,0.00033832,4]
[331282625,1720177843374,-25000.7011477,0.00033842,60]
[331282627,1720177843384,-1000.0,0.00034,34]
[331282628,1720177843394,-150.73437924,0.00034066,7]
[331282630,1720177843403,-152.80906433,0.0003433,7]
[331282632,1720177843414,-152.80906433,0.00034381,7]
[331282633,1720177843423,-13004.06455744,0.00034517,4]
[331282636,1720177843434,-6329.73360915,0.00034588,4]
[331282637,1720177843444,-150.73437924,0.00034589,7]
[331282639,1720177843454,-2316.79226907,0.0003467,4]
[331282642,1720177843464,-2699.93975309,0.00034899,4]
[331282644,1720177843476,-243.0,0.00034999,3]
[331282646,1720177843486,-2196.40771411,0.00034999,4]
[331282648,1720177843496,-150.73437924,0.00035029,7]
[331282649,1720177843506,-2831.83646381,0.00035292,120]
[331282652,1720177843516,-1500.68966724,0.00035292,2]
[331282654,1720177843526,-1484.29833384,0.00035615,4]